bitfinex/quotes_ETHUSD_20241006
["timestamp","ask_amount","ask_price","bid_price","bid_amount"]
[1728179725829,3.55,2419.9,2419.5,0.7688]
[1728179726132,3.85635,2419.6,2419.5,2.7688]
[1728179730239,3.85635,2419.6,2419.5,2.0]
[1728179730611,8.44771059,2419.6,2419.5,2.0]
[1728179731130,6.85635,2419.6,2419.5,2.0]
[1728179747089,8.44771059,2419.6,2419.5,2.0]
[1728179747288,9.69853265,2419.6,2419.5,2.0]
[1728179747716,3.30674,2419.3,2419.2,2.0]
[1728179747895,3.85674,2419.3,2419.2,2.0]
[1728179748903,6.85674,2419.3,2419.2,2.0]
[1728179760341,3.3064,2419.6,2419.5,2.7528]
[1728179760533,6.3064,2419.6,2419.5,2.7528]
[1728179761915,6.8564,2419.6,2419.5,2.7528]
[1728179762848,0.55270914,2420.3,2419.2,1.67402294]
[1728179762849,3.30599,2419.9,2419.8,2.0]
[1728179763182,3.30599,2419.9,2419.8,2.7528]
[1728179764574,3.85599,2419.9,2419.8,2.7528]
[1728179764776,6.85599,2419.9,2419.8,2.7528]
[1728179775720,3.55,2419.9,2419.8,2.7528]
[1728179778037,2.37596059,2420.4,2420.1,2.0]
[1728179778038,3.30558,2420.2,2420.1,2.0]
[1728179778352,3.85558,2420.2,2420.1,2.8171]
[1728179778949,7.1612,2420.2,2420.1,2.8171]
[1728179779322,10.1612,2420.2,2420.1,2.8171]
[1728179783159,10.1612,2420.2,2420.1,2.0]
[1728179783453,11.31797426,2420.2,2420.1,2.0]
[1728179783659,6.85558,2420.2,2420.1,2.0]
[1728179783865,6.85558,2420.2,2420.1,2.8035]
[1728179784066,3.30533,2420.4,2420.1,2.8035]
[1728179785185,3.3054,2420.3,2420.1,2.8035]
[1728179785351,0.55,2420.2,2420.1,2.8035]
[1728179785533,0.4,2420.2,2420.1,2.8035]
[1728179786423,6.61067,2420.4,2420.1,2.8035]
[1728179786933,3.30538,2420.3,2420.1,2.8035]
[1728179787437,0.55,2420.2,2420.1,2.8035]
[1728179788026,0.55,2420.3,2420.1,2.8035]
[1728179788227,3.85538,2420.3,2420.1,2.8035]
[1728179796674,0.55,2420.3,2420.1,2.8035]
[1728179797225,3.85541,2420.3,2420.1,2.8035]
[1728179798359,0.55,2420.3,2420.1,2.8035]
[1728179798966,3.85538,2420.3,2420.1,2.8035]
[1728179801776,0.55,2420.3,2420.1,2.8035]
[1728179802273,3.85542,2420.3,2420.1,2.8035]
[1728179820230,3.85551,2420.2,2420.1,2.0]
[1728179822099,5.404199,2420.2,2420.1,2.0]
[1728179826312,4.571599,2420.2,2420.1,2.0]
[1728179849212,3.85551,2420.2,2420.1,2.0]
[1728179868912,0.55,2420.2,2420.1,2.8157]
[1728179869202,3.30516,2420.5,2420.3,2.0]
[1728179869203,0.55,2420.4,2420.3,2.0]
[1728179869414,3.85523,2420.4,2420.3,2.8161]
[1728179869862,0.55,2420.4,2420.3,2.8161]
[1728179870062,3.85523,2420.4,2420.3,2.8161]
[1728179873504,3.85523,2420.4,2420.3,2.0]
[1728179888024,3.30459,2420.9,2420.6,2.0]
[1728179888223,3.30436,2421.1,2420.9,2.8161]
[1728179888531,3.30441,2421.0,2420.9,2.0]
[1728179889756,3.85441,2421.0,2420.9,2.0]
[1728179892565,6.85441,2421.0,2420.9,2.0]
[1728179892764,7.948697,2421.0,2420.9,2.0]
[1728179905510,7.948697,2421.0,2420.5,0.8028]
[1728179905511,3.85482,2420.7,2420.6,2.0]
[1728179905664,6.85482,2420.7,2420.6,2.0]
[1728179961462,3.85482,2420.7,2420.6,2.7638]
[1728179970983,0.55,2420.7,2420.6,4.35516059]
[1728179971185,3.30449,2421.0,2420.9,2.8102]
[1728179971387,0.55,2421.0,2420.9,4.40156059]
[1728179972489,3.85441,2421.0,2420.9,4.40156059]
[1728179972794,0.55,2421.0,2420.9,4.40156059]
[1728179973035,3.30429,2421.1,2421.0,0.8102]
[1728179973488,3.30409,2421.3,2421.2,2.0]
[1728179974391,3.85409,2421.3,2421.2,2.0]
[1728179975879,3.85409,2421.3,2421.2,2.8102]
[1728179987125,3.85409,2421.3,2421.2,2.0]
[1728179992040,0.55,2421.3,2421.2,2.8313]
[1728179992740,3.85401,2421.3,2421.2,2.8313]
[1728179993561,0.55,2421.3,2421.2,2.8313]
[1728179993926,3.30388,2421.4,2421.2,2.8313]
[1728179994129,3.30362,2421.6,2421.5,2.0]
[1728179994355,6.85362,2421.6,2421.5,2.0]
[1728179995076,3.85362,2421.6,2421.5,2.8313]
[1728179995234,3.85362,2421.6,2421.5,4.42266059]
[1728179998845,0.55,2421.6,2421.5,4.42266059]
[1728179999880,3.30327,2421.9,2421.8,2.8313]
[1728180000035,3.30309,2422.0,2421.8,4.42266059]
[1728180000472,3.30299,2422.1,2421.8,4.42266059]
[1728180000873,3.30299,2422.1,2422.0,1.59136059]
[1728180001268,3.30279,2422.2,2422.1,2.0]
[1728180002180,3.85279,2422.2,2422.1,2.0]
[1728180005967,0.55,2422.2,2422.1,2.0]
[1728180007083,3.85278,2422.2,2422.1,2.0]
[1728180007401,14.26134202,2422.7,2422.1,2.0]
[1728180007402,3.30215,2422.7,2422.5,0.8313]
[1728180007567,6.60433,2422.7,2422.6,1.59136059]
[1728180007910,3.30215,2422.7,2422.6,1.59136059]
[1728180009558,3.85215,2422.7,2422.6,1.59136059]
[1728180010803,0.55,2422.8,2422.7,2.0]
[1728180011203,3.85196,2422.8,2422.7,2.0]
[1728180011627,0.55,2422.8,2422.7,2.0]
[1728180012848,6.60323,2423.1,2423.0,2.0]
[1728180013019,7.15323,2423.1,2423.0,2.0]
[1728180013226,3.85158,2423.1,2423.0,2.0]
[1728180013434,3.30155,2423.1,2423.0,2.0]
[1728180014746,3.83077202,2423.1,2423.0,2.0]
[1728180015455,4.38077202,2423.1,2423.0,2.0]
[1728180015615,3.85155,2423.1,2423.0,2.0]
[1728180018352,0.55,2423.1,2423.0,2.0]
[1728180018652,0.55,2423.1,2423.0,4.41466059]
[1728180021495,0.55,2423.2,2423.0,4.41466059]
[1728180022052,0.53761891,2423.2,2423.0,4.41466059]
[1728180022254,3.30141,2423.2,2423.0,4.41466059]
[1728180025476,3.85125,2423.4,2423.3,2.0]
[1728180027622,0.55,2423.4,2423.3,2.0]
[1728180027777,0.55,2423.4,2423.3,2.8159]
[1728180027979,6.60165,2423.7,2423.6,2.0]
[1728180028227,3.30081,2423.7,2423.6,2.0]
[1728180029618,3.85081,2423.7,2423.6,2.0]
[1728180033616,4.6979842,2423.7,2423.6,2.0]
[1728180033819,5.4800842,2423.7,2423.6,2.0]
[1728180037418,3.85081,2423.7,2423.6,2.0]
[1728180048934,4.63291,2423.7,2423.6,2.0]
[1728180055386,7.63291,2423.7,2423.6,2.0]
[1728180056002,8.16213202,2423.7,2423.6,2.0]
[1728180057301,7.63291,2423.7,2423.6,2.0]
[1728180057804,8.726262,2423.7,2423.6,2.0]
[1728180060681,7.63291,2423.7,2423.6,2.0]
[1728180068747,8.07572991,2423.7,2423.6,2.0]
[1728180077467,7.63291,2423.7,2423.6,2.0]
[1728180079431,7.63291,2423.7,2423.3,2.0]
[1728180079432,7.68094,2423.4,2423.3,2.0]
[1728180079637,8.779136,2423.4,2423.3,2.0]
[1728180087870,3.8521,2422.7,2422.6,2.8267]
[1728180088462,0.55,2422.7,2422.6,2.8267]
[1728180100091,3.8521,2422.7,2422.6,2.8267]
[1728180101441,3.8521,2422.7,2422.6,2.0]
[1728180115511,4.567507,2422.7,2422.6,2.0]
[1728180119917,3.8521,2422.7,2422.6,2.0]
[1728180151617,9.25286059,2422.7,2422.6,2.0]
[1728180152518,9.25286059,2422.7,2421.7,1.59136059]
[1728180152519,3.3025,2422.4,2422.3,2.0]
[1728180152826,9.25326059,2422.4,2422.3,2.0]
[1728180153010,10.50882465,2422.4,2422.3,2.0]
[1728180154514,10.50882465,2422.4,2421.2,0.64629399]
[1728180154515,3.8536,2421.6,2421.5,0.7625]
[1728180154816,0.8094,2421.8,2421.3,2.7625]
[1728180154817,3.85395,2421.4,2421.3,2.7625]
[1728180155978,3.85395,2421.4,2421.3,2.0]
[1728180164197,4.81065506,2421.4,2421.3,2.0]
[1728180165236,7.81065506,2421.4,2421.3,2.0]
[1728180170522,6.85395,2421.4,2421.3,2.0]
[1728180217508,6.85395,2421.4,2421.1,0.7625]
[1728180217509,6.85428,2421.1,2421.0,2.0]
[1728180217696,9.22674059,2421.1,2421.0,2.0]
[1728180220564,3.85551,2420.2,2420.1,1.4522674]
[1728180220763,3.85551,2420.2,2420.1,2.0]
[1728180221197,6.85551,2420.2,2420.1,2.0]
[1728180221880,3.30605,2419.8,2419.7,2.8057]
[1728180222060,3.55,2419.8,2419.4,2.0]
[1728180222408,0.55,2419.5,2419.4,2.0]
[1728180223193,6.85646,2419.5,2419.4,2.0]
[1728180229972,3.30619,2419.7,2419.5,0.7606]
[1728180230496,3.30612,2419.8,2419.5,0.7606]
[1728180230497,3.30612,2419.8,2419.7,2.0]
[1728180231297,6.85612,2419.8,2419.7,2.0]
[1728180237818,3.30646,2419.5,2419.4,2.0]
[1728180238034,3.85646,2419.5,2419.4,2.0]
[1728180241054,0.55,2419.5,2419.4,2.7606]
[1728180241357,3.0,2419.9,2419.7,2.7606]
[1728180241860,3.3053,2420.4,2420.3,2.0]
[1728180243123,6.3053,2420.4,2420.3,2.0]
[1728180243327,6.8553,2420.4,2420.3,2.0]
[1728180243729,8.03047606,2420.4,2420.3,2.0]
[1728180244213,8.03047606,2420.4,2420.0,2.0]
[1728180244214,3.30564,2420.1,2420.0,2.0]
[1728180244438,3.85564,2420.1,2420.0,2.0]
[1728180245854,0.55,2420.1,2420.0,2.0]
[1728180247833,3.85564,2420.1,2420.0,2.0]
[1728180251766,0.55,2420.1,2420.0,2.0]
[1728180251979,4.241192,2420.1,2420.0,2.0]
[1728180252142,0.55,2419.8,2419.7,2.0]
[1728180252340,3.85605,2419.8,2419.7,2.0]
[1728180253073,6.85605,2419.8,2419.7,2.0]
[1728180256888,3.55,2419.8,2419.7,2.0]
[1728180257646,3.30574,2420.1,2420.0,2.0]
[1728180257877,6.61111,2420.2,2420.0,2.0]
[1728180258186,3.30552,2420.2,2420.0,2.0]
[1728180258360,6.61111,2420.2,2420.0,2.0]
[1728180258555,3.30564,2420.1,2420.0,2.0]
[1728180258994,3.85564,2420.1,2420.0,2.0]
[1728180259696,6.85564,2420.1,2420.0,2.0]
[1728180277219,7.871756,2420.1,2420.0,2.0]
[1728180281323,3.30593,2419.9,2419.8,2.0]
[1728180281586,3.85593,2419.9,2419.7,0.7606]
[1728180281785,3.30593,2419.9,2419.8,2.0]
[1728180281964,3.85593,2419.9,2419.8,2.0]
[1728180288933,6.85593,2419.9,2419.8,2.0]
[1728180289118,7.949372,2419.9,2419.8,2.0]
[1728180291928,6.85593,2419.9,2419.8,2.0]
[1728180315943,3.55,2419.8,2419.5,2.0]
[1728180316257,6.85633,2419.6,2419.5,2.0]
[1728180325446,6.80633,2419.6,2419.5,2.0]
[1728180341188,7.60893,2419.6,2419.5,2.0]
[1728180341424,3.85674,2419.3,2419.2,2.0]
[1728180341604,6.85674,2419.3,2419.2,2.0]
[1728180345672,3.30715,2419.0,2418.9,2.0]
[1728180345927,6.85715,2419.0,2418.9,2.0]
[1728180362191,6.30715,2419.0,2418.9,2.7762]
[1728180363564,6.85715,2419.0,2418.9,2.7762]
[1728180367981,7.873568,2419.0,2418.9,2.0]
[1728180368498,6.85715,2419.0,2418.9,2.0]
[1728180379697,6.85715,2419.0,2418.9,2.7981]
[1728180382008,6.85384278,2419.0,2418.9,2.7981]
[1728180386419,6.85384278,2419.0,2418.9,2.0]
[1728180386939,7.65574278,2419.0,2418.9,2.0]
[1728180387243,8.9114309,2419.0,2418.9,2.0]
[1728180394748,6.85384278,2419.0,2418.9,2.0]
[1728180395252,6.85384278,2419.0,2418.9,2.7558]
[1728180398659,6.85384278,2419.0,2418.9,2.0]
[1728180430414,7.62294278,2419.0,2418.9,2.0]
[1728180467796,6.85384278,2419.0,2418.9,2.0]
[1728180477141,6.85384278,2419.0,2418.9,2.7545]
[1728180485642,7.86993006,2419.0,2418.9,2.0]
[1728180488448,6.85384278,2419.0,2418.9,2.0]
[1728180526748,7.64214278,2419.0,2418.9,2.0]
[1728180528838,6.85384278,2419.0,2418.9,2.0]
[1728180531839,6.85728,2418.9,2418.8,2.8076]
[1728180547884,6.85728,2418.9,2418.8,2.0]
[1728180548177,3.30753,2418.8,2418.6,0.8318]
[1728180548412,3.55,2418.7,2418.6,0.8318]
[1728180548758,6.85756,2418.7,2418.6,0.8318]
[1728180553496,6.85756,2418.7,2418.6,2.8318]
[1728180554596,6.85756,2418.7,2418.6,2.0]
[1728180554999,7.42038943,2418.7,2418.6,2.0]
[1728180555299,9.80739783,2418.7,2418.6,2.0]
[1728180565638,9.80739783,2418.7,2417.8,2.7668]
[1728180565639,3.55,2417.9,2417.8,2.7668]
[1728180565931,6.85865,2417.9,2417.8,2.7668]
[1728180566093,3.55,2417.9,2417.8,2.7668]
[1728180567182,6.85865,2417.9,2417.8,2.7668]
[1728180572391,6.85865,2417.9,2417.8,2.0]
[1728180572612,8.11130184,2417.9,2417.8,2.0]
[1728180576299,6.85865,2417.9,2417.8,2.0]
[1728180597894,9.2105584,2417.9,2417.8,2.0]
[1728180602415,8.4527584,2417.9,2417.8,2.0]
[1728180602655,3.0,2417.9,2417.8,2.0]
[1728180602815,3.0,2417.9,2417.8,2.8072]
[1728180603612,7.06645,2417.9,2417.8,2.0]
[1728180603947,7.61645,2417.9,2417.8,2.0]
[1728180604981,4.3078,2417.9,2417.8,2.0]
[1728180605142,7.61645,2417.9,2417.8,2.0]
[1728180605333,6.85865,2417.9,2417.8,2.0]
[1728180607368,3.55,2417.9,2417.8,2.0]
[1728180609777,6.85865,2417.9,2417.8,2.0]
[1728180613182,3.55,2417.9,2417.8,2.0]
[1728180617198,6.85865,2417.9,2417.8,2.0]
[1728180619198,7.90227841,2417.9,2417.8,2.0]
[1728180624290,8.66617841,2417.9,2417.8,2.0]
[1728180657129,6.8592,2417.5,2417.4,2.0]
[1728180663272,6.8592,2417.5,2417.4,2.7654]
[1728180663825,6.3092,2417.5,2417.4,2.7654]
[1728180665078,6.8592,2417.5,2417.4,2.7654]
[1728180673992,6.8592,2417.5,2417.4,0.7654]
[1728180677793,6.8592,2417.5,2417.4,2.7654]
[1728180678098,6.8592,2417.5,2417.4,2.0]
[1728180715965,6.8592,2417.5,2417.4,2.8043]
[1728180716821,6.8592,2417.5,2417.4,2.0]
[1728180717343,8.03543884,2417.5,2417.4,2.0]
[1728180717517,9.62954724,2417.5,2417.4,2.0]
[1728180737380,6.8592,2417.5,2417.4,2.0]
[1728180737548,6.8592,2417.5,2417.4,2.7579]
[1728180739164,6.8592,2417.5,2417.4,2.0]
[1728180743164,7.6852,2417.5,2417.4,2.0]
[1728180757462,6.8592,2417.5,2417.4,2.0]
[1728180761403,8.11714884,2417.5,2417.4,2.0]
[1728180768402,6.8592,2417.5,2417.4,2.0]
[1728180768703,6.3092,2417.5,2417.4,2.7876]
[1728180770071,6.8592,2417.5,2417.4,2.7876]
[1728180813516,3.30888,2417.8,2417.7,2.0]
[1728180815017,6.85888,2417.8,2417.7,2.0]
[1728180821469,7.18358964,2427.1,2418.2,2.0]
[1728180821470,3.30817,2418.3,2418.2,2.0]
[1728180821664,3.30797,2418.4,2418.3,0.8165]
[1728180821863,3.30775,2418.6,2418.5,2.0]
[1728180822220,0.52481043,2419.1,2418.5,2.0]
[1728180822221,6.61522,2418.7,2418.5,2.0]
[1728180822417,3.30757,2418.7,2418.6,0.8165]
[1728180822834,3.30736,2418.9,2418.8,2.0]
[1728180823767,6.30736,2418.9,2418.8,2.0]
[1728180823939,3.30715,2419.0,2418.8,2.0]
[1728180825026,6.6144,2419.0,2418.8,2.0]
[1728180825216,3.0,2418.9,2418.8,2.0]
[1728180825968,6.30728,2418.9,2418.8,2.0]
[1728180829451,6.85728,2418.9,2418.8,2.0]
[1728180830860,6.30728,2418.9,2418.8,2.0]
[1728180837373,3.0,2418.9,2418.8,2.0]
[1728180843133,3.55,2419.1,2419.0,2.0]
[1728180844432,6.85701,2419.1,2419.0,2.0]
[1728180846123,3.55,2419.1,2419.0,2.0]
[1728180846818,6.85701,2419.1,2419.0,2.0]
[1728180847435,3.55,2419.1,2419.0,2.0]
[1728180850833,6.85701,2419.1,2419.0,2.0]
[1728180852620,7.64761,2419.1,2419.0,2.0]
[1728180852836,8.664006,2419.1,2419.0,2.0]
[1728180860835,8.464006,2419.1,2419.0,2.0]
[1728180870675,7.44761,2419.1,2419.0,2.0]
[1728180879418,7.44761,2419.1,2417.3,0.64717075]
[1728180879419,6.85742,2418.8,2418.7,2.0]
[1728180879726,9.2209284,2418.8,2418.7,2.0]
[1728180884218,6.85742,2418.8,2418.7,2.7848]
[1728180884514,6.30742,2418.8,2418.7,2.7848]
[1728180885908,6.85742,2418.8,2418.7,2.7848]
[1728180899813,3.55,2418.8,2418.7,2.7848]
[1728180900123,0.55,2418.9,2418.7,2.0]
[1728180900324,0.55,2418.9,2418.8,0.7741]
[1728180902407,0.55,2419.2,2419.1,2.0]
[1728180902606,3.85687,2419.2,2419.1,2.0]
[1728180903700,6.85687,2419.2,2419.1,2.0]
[1728180909718,3.55,2419.2,2419.1,2.0]
[1728180915154,6.85687,2419.2,2419.1,2.0]
[1728180915776,0.55,2419.2,2419.1,2.0]
[1728180916978,10.7362,2419.7,2419.4,2.0]
[1728180917183,4.12559,2419.8,2419.7,2.0]
[1728180917184,3.30609,2419.8,2419.7,2.0]
[1728180918583,3.85609,2419.8,2419.7,2.0]
[1728180918750,6.85609,2419.8,2419.7,2.0]
[1728180919347,3.55,2419.8,2419.7,2.0]
[1728180921456,6.85605,2419.8,2419.7,2.0]
[1728180922902,3.55,2419.8,2419.7,2.0]
[1728180923792,4.12523,2420.1,2419.6,0.772]
[1728180923793,3.0,2420.0,2419.9,2.772]
[1728180924269,3.30546,2420.3,2420.2,2.0]
[1728180925499,6.85546,2420.3,2420.2,2.0]
[1728180928000,6.85546,2420.3,2420.2,2.772]
[1728180933175,3.55,2420.3,2420.2,2.772]
[1728180933655,6.85537,2420.3,2420.2,2.772]
[1728180935818,6.85537,2420.3,2420.2,2.0]
[1728180936057,9.03185131,2420.3,2420.2,2.0]
[1728180936243,6.85551,2420.2,2419.8,0.7531]
[1728180936448,6.85551,2420.2,2420.1,2.0]
[1728180936646,3.30581,2420.0,2419.8,0.7531]
[1728180937226,3.30581,2420.0,2419.9,2.0]
[1728180938221,3.30581,2420.0,2419.8,0.7531]
[1728180938459,3.30581,2420.0,2419.9,2.0]
[1728180938829,3.85581,2420.0,2419.9,2.0]
[1728180939741,6.85581,2420.0,2419.9,2.0]
[1728180939975,3.55,2420.0,2419.9,2.0]
[1728180942854,3.55,2420.1,2419.9,2.0]
[1728180943894,0.55,2420.1,2419.9,2.0]
[1728180948814,1.3647,2420.1,2419.9,2.0]
[1728180949016,6.85578,2420.0,2419.9,2.0]
[1728180950170,3.55,2420.0,2419.9,2.0]
[1728180953889,6.85578,2420.0,2419.9,2.0]
[1728180956602,3.55,2420.0,2419.9,2.0]
[1728180958199,6.85578,2420.0,2419.9,2.0]
[1728180965814,3.55,2420.0,2419.9,2.0]
[1728180967017,6.85578,2420.0,2419.9,2.0]
[1728180971432,3.55,2420.0,2419.9,2.0]
[1728180972271,6.85578,2420.0,2419.9,2.0]
[1728180973244,3.55,2420.0,2419.9,2.0]
[1728180977467,0.55,2420.0,2419.9,2.0]
[1728180978074,0.55,2420.1,2419.9,2.0]
[1728180979151,3.0,2420.0,2419.9,2.0]
[1728180979352,3.55,2420.0,2419.9,2.0]
[1728180980548,8.307246,2420.0,2419.9,2.0]
[1728180982161,7.62209,2419.7,2419.6,2.0]
[1728180982446,9.2161984,2419.7,2419.6,2.0]
[1728180991991,7.62209,2419.7,2419.6,2.0]
[1728180994429,7.62209,2419.7,2419.1,0.7849]
[1728180994430,3.55,2419.6,2419.1,0.7849]
[1728180994725,3.85687,2419.2,2419.1,2.7849]
[1728180999524,3.85687,2419.2,2419.1,2.0]
[1728181003289,0.55,2419.2,2419.1,2.0]
[1728181003795,3.85687,2419.2,2419.1,2.0]
[1728181006133,0.55,2419.2,2419.1,2.0]
[1728181009104,6.85687,2419.2,2419.1,2.0]
[1728181013049,7.65166279,2419.2,2419.1,2.0]
[1728181016433,8.42326279,2419.2,2419.1,2.0]
[1728181023068,6.85769,2418.6,2418.5,2.0]
[1728181037694,6.85769,2418.6,2418.5,2.8315]
[1728181041815,6.85769,2418.6,2418.5,2.0]
[1728181052745,0.7716,2418.8,2418.5,2.0]
[1728181052746,3.0,2418.8,2418.6,2.0]
[1728181052898,3.0,2418.8,2418.7,0.7545]
[1728181053837,6.30742,2418.8,2418.7,0.7545]
[1728181054132,6.85742,2418.8,2418.7,0.7545]
[1728181054929,3.55,2418.8,2418.7,0.7545]
[1728181056098,0.55,2418.8,2418.7,0.7545]
[1728181057500,3.85742,2418.8,2418.7,0.7545]
[1728181058604,3.85742,2418.8,2418.6,2.0]
[1728181058799,0.55,2418.7,2418.6,2.0]
[1728181059005,3.55,2418.7,2418.6,2.0]
[1728181062737,0.55,2418.7,2418.6,2.0]
[1728181062952,0.55,2418.7,2418.6,2.8243]
[1728181065847,3.0,2419.0,2418.9,2.8243]
[1728181066166,3.30676,2419.3,2419.1,2.0]
[1728181066525,6.61361,2419.3,2419.1,2.0]
[1728181067225,3.0,2419.2,2419.1,2.0]
[1728181067426,3.55,2419.2,2419.1,2.0]
[1728181068343,3.55,2419.2,2419.1,2.8243]
[1728181074659,6.85687,2419.2,2419.1,2.8243]
[1728181075764,3.55,2419.2,2419.1,2.8243]
[1728181076333,6.85687,2419.2,2419.1,2.8243]
[1728181082104,3.55,2419.2,2419.1,2.8243]
[1728181083714,3.0,2419.2,2419.1,2.8243]
[1728181083911,3.30626,2419.7,2419.6,2.0]
[1728181084449,4.07746,2419.7,2419.6,2.0]
[1728181085253,7.07746,2419.7,2419.6,2.0]
[1728181085403,7.62746,2419.7,2419.6,2.0]
[1728181092314,2.20019607,2419.7,2419.6,2.0]
[1728181092907,5.50645607,2419.7,2419.6,2.0]
[1728181094940,2.20019607,2419.7,2419.6,2.0]
[1728181095907,0.55,2419.8,2419.6,2.0]
[1728181097970,6.85619,2419.7,2419.6,2.0]
[1728181098167,8.10862684,2419.7,2419.6,2.0]
[1728181100345,6.85619,2419.7,2419.6,2.0]
[1728181111788,3.0,2419.9,2419.6,2.8061]
[1728181111980,8.2421,2420.2,2419.6,2.8061]
[1728181111981,6.30565,2420.1,2420.0,2.0]
[1728181112183,4.11741,2420.4,2420.3,2.0]
[1728181113686,7.11741,2420.4,2420.3,2.0]
[1728181113992,7.66741,2420.4,2420.3,2.0]
[1728181116290,7.66741,2420.4,2419.9,0.8061]
[1728181116291,3.30564,2420.1,2420.0,2.0]
[1728181116493,6.85564,2420.1,2420.0,2.0]
[1728181155135,6.85564,2420.1,2420.0,2.8037]
[1728181159463,3.55,2420.1,2420.0,2.8037]
[1728181170837,3.0,2420.3,2420.2,2.7673]
[1728181171173,3.0,2420.5,2420.4,2.0]
[1728181171681,10.73477,2420.8,2420.4,2.0]
[1728181171682,3.30477,2420.8,2420.7,2.0]
[1728181172967,6.85477,2420.8,2420.7,2.0]
[1728181178578,10.3349114,2420.8,2420.7,2.0]
[1728181201444,9.5439114,2420.8,2420.7,2.0]
[1728181201606,6.30477,2420.8,2420.7,2.0]
[1728181202922,6.85477,2420.8,2420.7,2.0]
[1728181219893,3.30456,2420.9,2420.7,2.7633]
[1728181220098,3.30456,2420.9,2420.8,0.7633]
[1728181221192,3.30414,2421.2,2421.1,2.7633]
[1728181221357,3.30414,2421.2,2421.1,2.0]
[1728181222497,3.30455,2420.9,2420.8,2.0]
[1728181222692,6.85455,2420.9,2420.8,2.0]
[1728181227987,6.30455,2420.9,2420.8,2.7633]
[1728181228765,6.30455,2420.9,2420.8,2.0]
[1728181229573,6.85455,2420.9,2420.8,2.0]
[1728181232808,6.85455,2420.9,2420.8,2.7897]
[1728181236977,6.85455,2420.9,2420.8,2.0]
[1728181240110,7.949888,2420.9,2420.8,2.0]
[1728181253923,8.702188,2420.9,2420.8,2.0]
[1728181265439,8.702188,2420.9,2420.4,2.0]
[1728181265440,3.3051,2420.5,2420.4,2.0]
[1728181265648,6.8551,2420.5,2420.4,2.0]
[1728181283085,9.2357084,2420.5,2420.4,2.0]
[1728181283407,7.64201,2420.2,2420.1,2.0]
[1728181283703,9.2361184,2420.2,2420.1,2.0]
[1728181284482,6.85592,2419.9,2419.8,2.0]
[1728181297619,8.4500284,2419.9,2419.8,2.0]
[1728181297826,10.40771024,2419.9,2419.8,2.0]
[1728181310535,9.62561024,2419.9,2419.8,2.0]
[1728181320690,3.30605,2419.8,2419.7,0.7727]
[1728181320897,6.85605,2419.8,2419.7,0.7727]
[1728181324481,6.85633,2419.6,2419.5,2.7727]
[1728181333683,3.0,2419.6,2419.5,2.7727]
[1728181334190,3.3057,2420.1,2420.0,2.7995]
[1728181335774,6.8557,2420.1,2420.0,2.7995]
[1728181353549,3.55,2420.1,2420.0,2.7995]
[1728181354439,6.85564,2420.1,2420.0,2.7995]
[1728181365767,3.0,2420.1,2420.0,2.7995]
[1728181367033,6.30564,2420.1,2420.0,2.7995]
[1728181367364,3.0,2420.1,2420.0,2.7995]
[1728181368135,6.30564,2420.1,2420.0,2.7995]
[1728181371469,6.30564,2420.1,2420.0,2.0]
[1728181383950,3.0,2420.1,2420.0,2.0]
[1728181384785,3.0,2420.1,2420.0,2.794]
[1728181385297,3.85537,2420.3,2420.2,2.0]
[1728181385503,0.55,2420.3,2420.2,2.794]
[1728181386553,3.55,2420.3,2420.2,2.794]
[1728181386756,6.85537,2420.3,2420.2,2.794]
[1728181391070,3.55,2420.3,2420.2,2.794]
[1728181391305,6.85537,2420.3,2420.2,2.794]
[1728181392486,3.0,2420.3,2420.2,2.794]
[1728181393374,3.85505,2420.6,2420.5,2.0]
[1728181393607,6.85505,2420.6,2420.5,2.8284]
[1728181394788,6.85505,2420.6,2420.5,2.0]
[1728181404752,3.55,2420.6,2420.5,2.0]
[1728181405470,0.7645,2420.9,2420.8,2.0]
[1728181405773,6.85464,2420.9,2420.8,2.0]
[1728181406067,3.30423,2421.2,2421.1,2.0]
[1728181406223,4.06852,2421.3,2421.1,2.0]
[1728181406224,5.30132184,2421.3,2421.1,2.0]
[1728181406429,3.30402,2421.3,2421.1,2.0]
[1728181406631,6.60813,2421.3,2421.1,2.0]
[1728181407330,3.30414,2421.2,2421.1,2.0]
[1728181407732,3.0,2421.2,2421.1,2.0]
[1728181408562,6.85414,2421.2,2421.1,2.0]
[1728181413745,3.55,2421.2,2421.1,2.0]
[1728181414544,3.8538,2421.5,2421.4,2.0]
[1728181415785,6.8538,2421.5,2421.4,2.0]
[1728181421294,10.51032024,2421.5,2421.4,2.0]
[1728181421450,3.30491,2420.7,2420.5,2.52086927]
[1728181421649,3.85491,2420.7,2420.6,2.0]